fUSD/lending_fUSD_20251115
["ID","MTS","AMOUNT","RATE_DAILY","PERIOD"]
[394074676,1763243544287,498.91187858,0.00041455,120]
[394074677,1763243544340,194.72792766,0.00041455,120]
[394074678,1763243544396,200.0,0.00041455,30]
[394074679,1763243544449,250.0,0.00041455,120]
[394074680,1763243544535,300.0,0.00041455,30]
[394074681,1763243544607,517.37161808,0.00041455,120]
[394074682,1763243544672,151.0,0.00041455,120]
[394074683,1763243544725,201.93286099,0.00041455,120]
[394074684,1763243544789,250.0,0.00041455,120]
[394074685,1763243544845,536.51436795,0.00041455,120]
[394074686,1763243544899,209.40437684,0.00041455,120]
[394074687,1763243544952,151.0,0.00041455,120]
[394074688,1763243545029,250.0,0.00041455,120]
[394074689,1763243545085,556.36539957,0.00041455,120]
[394074690,1763243545141,217.15233878,0.00041455,120]
[394074691,1763243545203,151.0,0.00041455,120]
[394074692,1763243545260,250.0,0.00041455,120]
[394074693,1763243545319,576.95091935,0.00041455,120]
[394074694,1763243545371,225.18697532,0.00041455,120]
[394074695,1763243545424,151.0,0.00041455,120]
[394074696,1763243545477,250.0,0.00041455,120]
[394074697,1763243545531,576.95091935,0.00041455,120]
[394074698,1763243545583,233.51889341,0.00041455,120]
[394074699,1763243545638,151.0,0.00041455,120]
[394074700,1763243545696,250.0,0.00041455,120]
[394074701,1763243546005,242.15909246,0.00041455,120]
[394074702,1763243546060,151.0,0.00041455,120]
[394074703,1763243546116,250.0,0.00041455,120]
[394074704,1763243546167,251.11897888,0.00041455,120]
[394074705,1763243546219,151.0,0.00041455,120]
[394074706,1763243546273,250.0,0.00041455,120]
[394074707,1763243546329,260.4103811,0.00041455,120]
[394074708,1763243546385,151.0,0.00041455,120]
[394074709,1763243546445,250.0,0.00041455,120]
[394074710,1763243546499,150.0,0.00022367,120]
[394074711,1763243546549,270.0455652,0.00041455,120]
[394074712,1763243546605,151.0,0.00041455,120]
[394074713,1763243546659,250.0,0.00041455,120]
[394074714,1763243546712,280.03725112,0.00041455,120]
[394074715,1763243546771,151.0,0.00041455,120]
[394074716,1763243546828,250.0,0.00041455,120]
[394074717,1763243546884,290.39862941,0.00041455,120]
[394074718,1763243546936,151.0,0.00041455,120]
[394074719,1763243546988,250.0,0.00041455,120]
[394074720,1763243547040,290.39862941,0.00041455,120]
[394074721,1763243547091,151.0,0.00041455,120]
[394074722,1763243547177,250.0,0.00041455,120]
[394074723,1763243547237,151.0,0.00041455,120]
[394074724,1763243547310,250.0,0.00041455,120]
[394074725,1763243547364,250.0,0.00041455,120]
[394074726,1763243547420,151.0,0.00041455,120]
[394074727,1763243547474,250.0,0.00041455,120]
[394074728,1763243547526,250.0,0.00041455,120]
[394074729,1763243547590,151.0,0.00041455,120]
[394074730,1763243547654,250.0,0.00041455,120]
[394074731,1763243547707,151.0,0.00041455,120]
[394074732,1763243547758,250.0,0.00041455,120]
[394074733,1763243547812,250.0,0.00041455,120]
[394074734,1763243547867,250.0,0.00041455,120]
[394074735,1763243547948,250.0,0.00041455,120]
[394074736,1763243547997,250.0,0.00041455,120]
[394074737,1763243548054,250.0,0.00041455,120]
[394074738,1763243548112,250.0,0.00041455,120]
[394074739,1763243548166,151.0,0.00041455,120]
[394074740,1763243548220,250.0,0.00041455,120]
[394074741,1763243548271,250.0,0.00041455,120]
[394074742,1763243548323,250.0,0.00041455,120]
[394074743,1763243548404,250.0,0.00041455,120]
[394074744,1763243548454,250.0,0.00041455,120]
[394074745,1763243548505,250.0,0.00041455,120]
[394074746,1763243548564,250.0,0.00041455,120]
[394074747,1763243548617,250.0,0.00041455,120]
[394074748,1763243548680,250.0,0.00041455,120]
[394074749,1763243548733,250.0,0.00041455,120]
[394074750,1763243548788,250.0,0.00041455,120]
[394074751,1763243548848,250.0,0.00041455,120]
[394074752,1763243548924,156.16431395,0.00041455,120]
[394074753,1763243550445,500.0,0.00041455,120]
[394074754,1763243550501,200.0,0.00041455,30]
[394074755,1763243550551,151.0,0.00041455,120]
[394074756,1763243550602,300.0,0.00041455,120]
[394074757,1763243550664,207.4,0.00041455,30]
[394074758,1763243550723,151.0,0.00041455,120]
[394074759,1763243550776,500.0,0.00041455,120]
[394074760,1763243550828,311.1,0.00041455,120]
[394074761,1763243550891,151.0,0.00041455,120]
[394074762,1763243550942,215.0738,0.00041455,30]
[394074763,1763243550994,500.0,0.00041455,120]
[394074764,1763243551048,322.6107,0.00041455,120]
[394074765,1763243551118,223.0315306,0.00041455,30]
[394074766,1763243551170,500.0,0.00041455,120]
[394074767,1763243551220,334.5472959,0.00041455,120]
[394074768,1763243551279,231.28369723,0.00041455,30]
[394074769,1763243551330,500.0,0.00041455,120]
[394074770,1763243551384,346.92554585,0.00041455,120]
[394074771,1763243551444,239.84119403,0.00041455,30]
[394074772,1763243551497,500.0,0.00041455,120]
[394074773,1763243551553,359.76179104,0.00041455,120]
[394074774,1763243551626,248.71531821,0.00041455,30]
[394074775,1763243551699,500.0,0.00041455,120]
[394074776,1763243551761,373.07297731,0.00041455,120]
[394074777,1763243551818,257.91778498,0.00041455,30]
[394074778,1763243551872,500.0,0.00041455,120]
[394074779,1763243551929,250.0,0.00041455,120]
[394074780,1763243551987,267.46074303,0.00041455,30]
[394074781,1763243552037,373.07297731,0.00041455,120]
[394074782,1763243552089,500.0,0.00041455,120]
[394074783,1763243552140,250.0,0.00041455,120]
[394074784,1763243552191,277.35679052,0.00041455,30]
[394074785,1763243552242,250.0,0.00041455,120]
[394074786,1763243552292,287.61899177,0.00041455,30]
[394074787,1763243552690,298.26089446,0.00041455,30]
[394074788,1763243552741,250.0,0.00041455,120]
[394074789,1763243552921,309.29654756,0.00041455,30]
[394074790,1763243552972,250.0,0.00041455,120]
[394074791,1763243553020,250.0,0.00041455,120]
[394074792,1763243553070,320.74051982,0.00041455,30]
[394074793,1763243553121,250.0,0.00041455,120]
[394074794,1763243553179,250.0,0.00041455,120]
[394074795,1763243553233,500.0,0.00041455,120]
[394074796,1763243553349,250.0,0.00041455,120]
[394074797,1763243553404,332.60791905,0.00041455,30]
[394074798,1763243553457,500.0,0.00041455,120]
[394074799,1763243553510,250.0,0.00041455,120]
[394074800,1763243553561,250.0,0.00041455,120]
[394074801,1763243553613,500.0,0.00041455,120]
[394074802,1763243553669,500.0,0.00041455,120]
[394074803,1763243553722,250.0,0.00041455,120]
[394074804,1763243553774,344.91441206,0.00041455,30]
[394074805,1763243553828,250.0,0.00041455,120]
[394074806,1763243553883,250.0,0.00041455,120]
[394074807,1763243553937,500.0,0.00041455,120]
[394074808,1763243553990,250.0,0.00041455,120]
[394074809,1763243554043,500.0,0.00041455,120]
[394074810,1763243554097,357.6762453,0.00041455,30]
[394074811,1763243554150,250.0,0.00041455,120]
[394074812,1763243554202,250.0,0.00041455,120]
[394074813,1763243554253,500.0,0.00041455,120]
[394074814,1763243554306,311.74,0.00041455,120]
[394074815,1763243554360,250.0,0.00041455,120]
[394074816,1763243554411,370.91026638,0.00041455,30]
[394074817,1763243554464,250.0,0.00041455,120]
[394074818,1763243554517,250.0,0.00041455,120]
[394074819,1763243554568,384.63394623,0.00041455,30]
[394074820,1763243554621,250.0,0.00041455,120]
[394074821,1763243554677,250.0,0.00041455,120]
[394074822,1763243554731,384.63394623,0.00041455,30]
[394074823,1763243554784,250.0,0.00041455,120]
[394074824,1763243554835,250.0,0.00041455,120]
[394074825,1763243554889,250.0,0.00041455,120]
[394074826,1763243554940,250.0,0.00041455,120]
[394074827,1763243555031,250.0,0.00041455,120]
[394074828,1763243555103,250.0,0.00041455,120]
[394074829,1763243555160,250.0,0.00041455,120]
[394074830,1763243555213,250.0,0.00041455,120]
[394074831,1763243555264,151.0,0.00041455,120]
[394074832,1763243555318,250.0,0.00041455,120]
[394074833,1763243555369,250.0,0.00041455,120]
[394074834,1763243555421,151.0,0.00041455,120]
[394074835,1763243555470,250.0,0.00041455,120]
[394074836,1763243555520,250.0,0.00041455,120]
[394074837,1763243555723,151.0,0.00041455,120]
[394074838,1763243555779,250.0,0.00041455,120]
[394074839,1763243555830,250.0,0.00041455,120]
[394074840,1763243555883,151.0,0.00041455,120]
[394074841,1763243555944,250.0,0.00041455,120]
[394074842,1763243555999,250.0,0.00041455,120]
[394074843,1763243556048,151.0,0.00041455,120]
[394074844,1763243556099,250.0,0.00041455,120]
[394074845,1763243556150,250.0,0.00041455,120]
[394074846,1763243556201,151.0,0.00041455,120]
[394074847,1763243556252,250.0,0.00041455,120]
[394074848,1763243556304,250.0,0.00041455,120]
[394074849,1763243556354,151.0,0.00041455,120]
[394074850,1763243556404,250.0,0.00041455,120]
[394074851,1763243556453,250.0,0.00041455,120]
[394074852,1763243556503,151.0,0.00041455,120]
[394074853,1763243556564,250.0,0.00041455,120]
[394074854,1763243556614,250.0,0.00041455,120]
[394074855,1763243556671,151.0,0.00041455,120]
[394074856,1763243556721,250.0,0.00041455,120]
[394074857,1763243556774,250.0,0.00041455,120]
[394074858,1763243556826,151.0,0.00041455,120]
[394074859,1763243556885,250.0,0.00041455,120]
[394074860,1763243556945,250.0,0.00041455,120]
[394074861,1763243556997,151.0,0.00041455,120]
[394074862,1763243557049,151.0,0.00041455,120]
[394074863,1763243557104,151.0,0.00041455,120]
[394074864,1763243557163,151.0,0.00041455,120]
[394074865,1763243557213,151.0,0.00041455,120]
[394074866,1763243557262,151.0,0.00041455,120]
[394074867,1763243557313,151.0,0.00041455,120]
[394074868,1763243557365,151.0,0.00041455,120]
[394074869,1763243557421,151.0,0.00041455,120]
[394074870,1763243557471,151.0,0.00041455,120]
[394074871,1763243557571,414.0,0.00041455,120]
[394074872,1763243557620,429.318,0.00041455,120]
[394074873,1763243557674,445.202766,0.00041455,120]
[394074874,1763243557725,461.67526834,0.00041455,120]
[394074875,1763243557775,478.75725327,0.00041455,120]
[394074876,1763243557824,496.47127164,0.00041455,120]
[394074877,1763243557873,514.84070869,0.00041455,120]
[394074878,1763243557931,533.88981491,0.00041455,120]
[394074879,1763243557981,553.64373807,0.00041455,120]
[394074880,1763243558034,574.12855637,0.00041455,120]
[394074881,1763243558086,595.37131296,0.00041455,120]
[394074882,1763243558140,617.40005154,0.00041455,120]
[394074883,1763243558195,640.24385345,0.00041455,120]
[394074884,1763243558245,663.93287602,0.00041455,120]
[394074885,1763243558297,688.49839244,0.00041455,120]
[394074886,1763243558354,713.97283296,0.00041455,120]
[394074887,1763243558410,740.38982778,0.00041455,120]
[394074888,1763243558461,767.7842514,0.00041455,120]
[394074889,1763243558513,796.19226871,0.00041455,120]
[394074890,1763243558565,796.19226871,0.00041455,120]
[394074891,1763243559221,-1200.503,0.00016265,2]
[394074892,1763243559231,-105321.08674198,0.00016497,2]
[394074893,1763243559244,-224740.10315802,0.00016497,2]
[394074894,1763243559253,-300.0,0.00016525,2]
[394074895,1763243559263,-300.0,0.00016525,2]
[394074896,1763243559273,-481.38976792,0.00016596,2]
[394074897,1763243559284,-500.0,0.00016596,2]
[394074898,1763243559293,-500.0,0.00016596,2]
[394074899,1763243559306,-500.0,0.00016596,2]
[394074900,1763243559317,-500.0,0.00016596,2]
[394074901,1763243559326,-225.79332637,0.00016596,2]
[394074902,1763243559335,-500.0,0.00016596,2]
[394074903,1763243559346,-355.20219655,0.00016596,2]
[394074904,1763243559355,-500.0,0.00016596,2]
[394074905,1763243559364,-500.0,0.00016596,2]
[394074906,1763243559373,-500.0,0.00016596,2]
[394074907,1763243559383,-500.0,0.00016596,2]
[394074908,1763243559393,-500.0,0.00016596,2]
[394074909,1763243559402,-264.45584953,0.00016596,2]
[394074910,1763243559411,-7074.77445764,0.00016596,2]
[394074911,1763243559421,-500.0,0.00016696,2]
[394074912,1763243559429,-500.0,0.00016696,2]
[394074913,1763243559438,-500.0,0.00016696,2]
[394074914,1763243559447,-500.0,0.00016696,2]
[394074915,1763243559457,-500.0,0.00016999,2]
[394074916,1763243559466,-500.0,0.00016999,2]
[394074917,1763243559476,-500.0,0.00016999,2]
[394074918,1763243559485,-500.0,0.00016999,2]
[394074919,1763243559494,-500.0,0.00016999,2]
[394074920,1763243559504,-357.55,0.00016999,2]
[394074921,1763243559514,-250.0,0.00017,2]
[394074922,1763243559523,-300.0,0.00017892,2]
[394074923,1763243559533,-4736.81953524,0.00019,2]
[394074924,1763243559542,-300.0,0.00019,2]
[394074925,1763243559551,-543.82610047,0.00019,2]
[394074926,1763243559560,-772.57190153,0.00019163,2]
[394074927,1763243559569,-264.45584946,0.00019345,2]
[394074928,1763243559579,-7074.77445764,0.00019345,2]
[394074929,1763243559588,-178.03,0.00020623,2]
[394074930,1763243559597,-350.0,0.00021,2]
[394074931,1763243559607,-21339.7,0.00021021,2]
[394074932,1763243559616,-264.45584946,0.00022095,2]
[394074933,1763243559625,-7074.77445764,0.00022095,2]
[394074934,1763243559634,-150.0,0.00022367,2]
[394074935,1763243559647,-400.0,0.00023,2]
[394074936,1763243559656,-423.41,0.00023397,2]
[394074937,1763243559666,-166.66,0.00024238,2]
[394074938,1763243559675,-423.41,0.00024697,2]
[394074939,1763243559685,-1318.0,0.00024782,2]
[394074940,1763243559695,-575.0,0.00024782,2]
[394074941,1763243559705,-608.0,0.00024782,2]
[394074942,1763243559714,-821.0,0.00024782,2]
[394074943,1763243559723,-1598.0,0.00024782,2]
[394074944,1763243559733,-1190.0,0.00024782,2]
[394074945,1763243559742,-793.0,0.00024782,2]
[394074946,1763243559752,-1275.0,0.00024782,2]
[394074947,1763243559761,-150.0,0.00024782,2]
[394074948,1763243559771,-83360.91701948,0.000248,3]
[394074949,1763243559783,-302.61183806,0.000248,3]
[394074950,1763243559794,-3773.8207,0.000248,3]
[394074951,1763243559805,-1096.11848326,0.000248,3]
[394074952,1763243559816,-113983.8124042,0.000248,3]
[394074953,1763243559825,-400.01554538,0.00024829,2]
[394074954,1763243559835,-264.45584946,0.00024844,2]
[394074955,1763243559844,-7074.77445764,0.00024844,2]
[394074956,1763243559853,-16876.4400371,0.0002488,3]
[394074957,1763243559863,-50629.3201114,0.0002489,3]
[394074958,1763243559872,-299.99,0.0002498,7]
[394074959,1763243559881,-150.99,0.0002498,2]
[394074960,1763243559892,-166.66,0.00025039,2]
[394074961,1763243559902,-166.66,0.00025839,2]
[394074962,1763243559912,-8438.22001856,0.00025977,3]
[394074963,1763243559921,-423.41,0.00025997,2]
[394074964,1763243559931,-200.0,0.00026173,2]
[394074965,1763243559940,-150.0,0.0002647,2]
[394074966,1763243559949,-166.66,0.00026639,2]
[394074967,1763243559959,-423.41,0.00027297,2]
[394074968,1763243559968,-8438.22001856,0.00027387,3]
[394074969,1763243559978,-1430.92,0.00027397,2]
[394074970,1763243559987,-2516.06,0.00027397,2]
[394074971,1763243559996,-513.46,0.00027397,2]
[394074972,1763243560005,-166.66,0.00027439,2]
[394074973,1763243560015,-8438.22001856,0.00027574,3]
[394074974,1763243560024,-264.45584946,0.00027593,2]
[394074975,1763243560034,-7074.77445764,0.00027593,2]
[394074976,1763243560043,-16876.4400371,0.00027762,3]
[394074977,1763243560052,-8438.22001856,0.00027772,3]
[394074978,1763243560062,-1318.0,0.00027782,2]
[394074979,1763243560071,-575.0,0.00027782,2]
[394074980,1763243560080,-608.0,0.00027782,2]
[394074981,1763243560089,-821.0,0.00027782,2]
[394074982,1763243560098,-1598.0,0.00027782,2]
[394074983,1763243560107,-1190.0,0.00027782,2]
[394074984,1763243560117,-793.0,0.00027782,2]
[394074985,1763243560127,-1275.0,0.00027782,2]
[394074986,1763243560136,-150.0,0.00027782,2]
[394074987,1763243560146,-150.0,0.00028219,2]
[394074988,1763243560155,-166.66,0.00028239,2]
[394074989,1763243560165,-423.41,0.00028596,2]
[394074990,1763243560174,-423.41,0.00029896,2]
[394074991,1763243560184,-1766.22,0.00030137,7]
[394074992,1763243560193,-264.45584946,0.00030343,2]
[394074993,1763243560202,-7074.77445764,0.00030343,2]
[394074994,1763243560212,-158.98864731,0.00030673,2]
[394074995,1763243560224,-588.49,0.00030685,30]
[394074996,1763243560235,-5298.71918355,0.00030752,3]
[394074997,1763243560246,-11577.72085355,0.00030752,3]
[394074998,1763243560256,-8438.22001856,0.00030762,3]
[394074999,1763243560265,-8438.22001856,0.00030772,3]
[394075000,1763243560275,-1318.0,0.00030782,2]
[394075001,1763243560284,-531.00330097,0.00030782,2]
[394075002,1763243560295,-43.99669903,0.00030782,2]
[394075003,1763243560308,-608.0,0.00030782,2]
[394075004,1763243560317,-821.0,0.00030782,2]
[394075005,1763243560327,-1598.0,0.00030782,2]
[394075006,1763243560337,-1190.0,0.00030782,2]
[394075007,1763243560347,-793.0,0.00030782,2]
[394075008,1763243560357,-1275.0,0.00030782,2]
[394075009,1763243560366,-150.0,0.00030782,2]
[394075010,1763243560375,-423.41,0.00031196,2]
[394075011,1763243560385,-8438.22001856,0.00032214,3]
[394075012,1763243560396,-2405.26,0.00032224,2]
[394075013,1763243560405,-423.41,0.00032496,2]
[394075014,1763243560415,-264.45584946,0.00033092,2]
[394075015,1763243560425,-6678.11085545,0.00033092,2]
[394075016,1763243560436,-396.66360219,0.00033092,2]
[394075017,1763243560445,-500.0,0.00033315,2]
[394075018,1763243560454,-500.0,0.00033315,2]
[394075019,1763243560464,-8438.22001856,0.00033762,3]
[394075020,1763243560473,-8438.22001856,0.00033772,3]
[394075021,1763243560483,-1318.0,0.00033782,2]
[394075022,1763243560492,-575.0,0.00033782,2]
[394075023,1763243560501,-608.0,0.00033782,2]
[394075024,1763243560510,-821.0,0.00033782,2]
[394075025,1763243560519,-262.59084378,0.00033782,2]
[394075026,1763243560532,-1335.40915622,0.00033782,2]
[394075027,1763243560541,-179.68507836,0.00033782,2]
[394075028,1763243560551,-1010.31492164,0.00033782,2]
[394075029,1763243560560,-555.3257095,0.00033782,2]
[394075030,1763243560572,-237.6742905,0.00033782,2]
[394075031,1763243560581,-1275.0,0.00033782,2]
[394075032,1763243560591,-150.0,0.00033782,2]
[394075033,1763243560600,-423.41,0.00033796,2]
[394075034,1763243560615,-150.0,0.00034043,37]
[394075035,1763243560624,-335.99570292,0.00034253,2]
[394075036,1763243560635,-664.00429708,0.00034253,2]
[394075037,1763243560646,-835.89109774,0.00034308,3]
[394075038,1763243560657,-1180.93358683,0.00034308,3]
[394075039,1763243560669,-4052.76970208,0.00034308,3]
[394075040,1763243560680,-1116.68,0.00034308,3]
[394075041,1763243560691,-1021.58889273,0.00034308,3]
[394075042,1763243560805,-895.5214939,0.00034308,3]
[394075043,1763243560819,-701.57692737,0.00034308,3]
[394075044,1763243560844,-657.09347363,0.00034308,3]
[394075045,1763243560855,-357.56050135,0.00034308,3]
[394075046,1763243560867,-689.32368187,0.00034308,3]
[394075047,1763243560893,-596.298,0.00021698,2]
[394075048,1763243560904,-1107.77255539,0.00021698,2]
[394075049,1763243560916,-3552.68869496,0.00021698,2]
[394075050,1763243560925,-560.0,0.00024782,2]
[394075051,1763243560935,-560.0,0.00027782,2]
[394075052,1763243560944,-9.18928116,0.00034308,3]
[394075053,1763243560955,-639.46492409,0.00034308,3]
[394075054,1763243560967,-4718.84647435,0.00034308,3]
[394075055,1763243560976,-4065.75604665,0.00034391,3]
[394075056,1763243560988,-8947.21879473,0.00034391,3]
[394075057,1763243561000,-3863.46519572,0.00034391,3]
[394075058,1763243561009,-1000.0,0.00034782,2]
[394075059,1763243561019,-1000.0,0.00034956,2]
[394075060,1763243561028,-423.41,0.00035096,2]
[394075061,1763243561039,-264.45584946,0.00035841,2]
[394075062,1763243561048,-2392.45281944,0.00035841,2]
[394075063,1763243561059,-4682.3216382,0.00035841,2]
[394075064,1763243561069,-1000.0,0.00036086,2]
[394075065,1763243561079,-3395.22702332,0.00036567,2]
[394075066,1763243561091,-6662.14297668,0.00036567,2]
[394075067,1763243561100,-2281.69725821,0.00036772,4]
[394075068,1763243561115,-6156.52276035,0.00036772,4]
[394075069,1763243561125,-1318.0,0.00036782,2]
[394075070,1763243561322,-575.0,0.00036782,2]
[394075071,1763243561333,-821.0,0.00036782,2]
[394075072,1763243561343,-200.401,0.00036782,2]
[394075073,1763243561354,-1190.0,0.00036782,2]
[394075074,1763243561363,-793.0,0.00036782,2]
[394075075,1763243561372,-709.513,0.00036782,2]
[394075076,1763243561383,-150.0,0.00036782,2]
[394075077,1763243561394,-16876.4400371,0.00036956,4]
[394075078,1763243561404,-16876.4400371,0.00036966,4]
[394075079,1763243561413,-150.47,0.00036966,2]
[394075080,1763243561422,-500.0,0.00036986,15]
[394075081,1763243561432,-179.75488624,0.00036986,15]
[394075082,1763243561441,-300.0,0.00037151,5]
[394075083,1763243561451,-1000.0,0.0003739,2]
[394075084,1763243561461,-150.0,0.00037449,30]
[394075085,1763243561471,-400.0,0.00038247,7]
[394075086,1763243561480,-150.0,0.00038334,31]
[394075087,1763243561489,-317.03300854,0.00038356,2]
[394075088,1763243561499,-500.0,0.00038356,2]
[394075089,1763243561508,-884.95,0.00038356,2]
[394075090,1763243561518,-300.0,0.00038356,2]
[394075091,1763243561527,-264.45584946,0.00038591,2]
[394075092,1763243561536,-7074.77445764,0.00038591,2]
[394075093,1763243561545,-500.0,0.0003863,2]
[394075094,1763243561555,-884.95,0.0003863,2]
[394075095,1763243561564,-300.0,0.0003863,2]
[394075096,1763243561574,-1000.0,0.00038695,2]
[394075097,1763243561583,-500.0,0.00038904,2]
[394075098,1763243561592,-884.95,0.00038904,2]
[394075099,1763243561602,-304.89662564,0.00038904,2]
[394075100,1763243561611,-500.0,0.00039178,2]
[394075101,1763243561621,-884.95,0.00039178,2]
[394075102,1763243561630,-1000.0,0.00039325,2]
[394075103,1763243561640,-500.0,0.00039452,2]
[394075104,1763243561650,-884.95,0.00039452,2]
[394075105,1763243561659,-8438.22001856,0.00039579,4]
[394075106,1763243561669,-700.06,0.00039589,2]
[394075107,1763243561678,-1067.77,0.00039589,2]
[394075108,1763243561688,-700.06,0.00039589,2]
[394075109,1763243561697,-700.06,0.00039589,2]
[394075110,1763243561711,-1200.504,0.00039699,55]
[394075111,1763243561721,-500.0,0.00039726,2]
[394075112,1763243561730,-884.95,0.00039726,2]
[394075113,1763243561741,-8438.22001856,0.00039762,4]
[394075114,1763243561751,-8438.22001856,0.00039772,4]
[394075115,1763243561761,-1318.0,0.00039782,2]
[394075116,1763243561771,-575.0,0.00039782,2]
[394075117,1763243561780,-365.048,0.00039782,2]
[394075118,1763243561790,-1190.0,0.00039782,2]
[394075119,1763243561800,-169.4,0.00039863,2]
[394075120,1763243561810,-351.98,0.00039863,2]
[394075121,1763243561820,-150.0,0.00039863,2]
[394075122,1763243561830,-416.61,0.00039863,2]
[394075123,1763243561839,-550.16,0.00039863,2]
[394075124,1763243561849,-150.0,0.00039863,2]
[394075125,1763243561859,-550.16,0.00039863,2]
[394075126,1763243561869,-169.4,0.00039863,2]
[394075127,1763243561880,-416.61,0.00039863,2]
[394075128,1763243561890,-550.16,0.00039863,2]
[394075129,1763243561900,-150.0,0.00039863,2]
[394075130,1763243561909,-2416.74,0.00039863,2]
[394075131,1763243561919,-200.0,0.0003989,10]
[394075132,1763243561929,-967.5,0.00039906,30]
[394075133,1763243561939,-33752.8800742,0.0003997,4]
[394075134,1763243561949,-33752.8800742,0.0003998,4]
[394075135,1763243561960,-49807.19755321,0.0003999,2]
[394075136,1763243561970,-150.0,0.00039997,9]
[394075137,1763243561979,-1000.0,0.00039999,2]
[394075138,1763243561989,-150.0,0.00039999,25]
[394075139,1763243561999,-500.0,0.0004,2]
[394075140,1763243562008,-150.0,0.0004,60]
[394075141,1763243562018,-884.95,0.0004,2]
[394075142,1763243562027,-331.0,0.00040024,2]
[394075143,1763243562038,-16876.4400371,0.00040062,4]
[394075144,1763243562048,-8438.22001856,0.00040071,4]
[394075145,1763243562057,-555.32802148,0.0004008,30]
[394075146,1763243562067,-25314.6600557,0.00040081,4]
[394075147,1763243562077,-418.0,0.00040091,2]
[394075148,1763243562086,-418.0,0.00040091,2]
[394075149,1763243562096,-418.0,0.00040091,2]
[394075150,1763243562106,-418.0,0.00040091,2]
[394075151,1763243562116,-418.0,0.00040091,2]
[394075152,1763243562126,-153.0,0.00040091,2]
[394075153,1763243562135,-153.0,0.00040091,2]
[394075154,1763243562145,-153.0,0.00040091,2]
[394075155,1763243562154,-153.0,0.00040091,2]
[394075156,1763243562163,-153.0,0.00040091,2]
[394075157,1763243562173,-153.0,0.00040091,2]
[394075158,1763243562183,-153.0,0.00040091,2]
[394075159,1763243562193,-153.0,0.00040091,2]
[394075160,1763243562202,-153.0,0.00040091,2]
[394075161,1763243562212,-153.0,0.00040091,2]
[394075162,1763243562222,-153.0,0.00040091,2]
[394075163,1763243562233,-153.0,0.00040091,2]
[394075164,1763243562242,-153.0,0.00040091,2]
[394075165,1763243562252,-153.0,0.00040091,2]
[394075166,1763243562261,-659.0,0.00040091,2]
[394075167,1763243562270,-659.0,0.00040091,2]
[394075168,1763243562280,-659.0,0.00040091,2]
[394075169,1763243562290,-659.0,0.00040091,2]
[394075170,1763243562300,-659.0,0.00040091,2]
[394075171,1763243562312,-659.0,0.00040091,2]
[394075172,1763243562341,-734.0,0.00040091,2]
[394075173,1763243562359,-734.0,0.00040091,2]
[394075174,1763243562379,-734.0,0.00040091,2]
[394075175,1763243562397,-734.0,0.00040091,2]